fUST/lending_fUST_20260221
["ID","MTS","AMOUNT","RATE_DAILY","PERIOD"]
[406282770,1771687840223,-823.0,9.848e-05,2]
[406282772,1771687840232,-151.50367577,0.0001,2]
[406282774,1771687840241,-151.0,0.0001,2]
[406282776,1771687840251,-151.0,0.0001,2]
[406282778,1771687840261,-151.0,0.0001,2]
[406282779,1771687840270,-151.0,0.0001,2]
[406282781,1771687840280,-151.0,0.0001,2]
[406282783,1771687840289,-225.69273646,0.0001,2]
[406282785,1771687840298,-151.35232345,0.0001049,2]
[406282787,1771687840307,-150.0,0.00010559,2]
[406282789,1771687840316,-500.0,0.00010559,2]
[406282791,1771687840325,-500.0,0.00010614,2]
[406282793,1771687840334,-500.0,0.00010669,2]
[406282795,1771687840343,-500.0,0.00010723,2]
[406282796,1771687840352,-1264.42727244,0.00010743,2]
[406282798,1771687840361,-150.0,0.00010778,2]
[406282800,1771687840370,-4609.0,0.00010831,2]
[406282802,1771687840380,-1152.0,0.00010833,2]
[406282804,1771687840390,-1263.16410833,0.00010856,2]
[406282806,1771687840399,-1263.16410833,0.00010961,2]
[406282808,1771687840408,-1263.16410833,0.00011058,2]
[406282810,1771687840417,-204.0,0.00011101,2]
[406282812,1771687840427,-151.35232345,0.00011143,2]
[406282814,1771687840436,-1263.16410833,0.00011146,2]
[406282816,1771687840445,-1263.16410833,0.00011225,2]
[406282818,1771687840454,-1263.16410833,0.00011297,2]
[406282820,1771687840463,-1263.16410833,0.0001136,2]
[406282821,1771687840472,-1263.16410833,0.00011414,2]
[406282823,1771687840481,-1263.16410833,0.0001146,2]
[406282825,1771687840490,-1263.16410833,0.00011498,2]
[406282827,1771687840499,-1263.16410833,0.00011527,2]
[406282829,1771687840510,-151.35232345,0.00011535,2]
[406282831,1771687840519,-1263.16410833,0.00011548,2]
[406282833,1771687840528,-1263.16410833,0.00011561,2]
[406282835,1771687840536,-1263.16410833,0.00011565,2]
[406282836,1771687840545,-1263.16410833,0.00011633,2]
[406282838,1771687840554,-151.35232345,0.00011665,2]
[406282840,1771687840563,-1355.0,0.00011915,2]
[406282842,1771687840573,-1613.0,0.00011916,2]
[406282844,1771687840584,-500.0,0.00012055,2]
[406282846,1771687840593,-500.0,0.0001211,2]
[406282848,1771687840605,-500.0,0.00012165,2]
[406282850,1771687840614,-500.0,0.00012219,2]
[406282852,1771687840624,-500.0,0.00012274,2]
[406282854,1771687840633,-1693.97,0.00012329,2]
[406282856,1771687840642,-1757.71,0.00012329,2]
[406282858,1771687840652,-1464.76,0.00012329,2]
[406282859,1771687840661,-1220.63,0.00012329,2]
[406282861,1771687840672,-1017.2,0.00012329,2]
[406282863,1771687840681,-847.66,0.00012329,2]
[406282865,1771687840694,-706.39,0.00012329,2]
[406282867,1771687840703,-588.65,0.00012329,2]
[406282869,1771687840713,-490.55,0.00012329,2]
[406282871,1771687840722,-408.79,0.00012329,2]
[406282873,1771687840731,-340.66,0.00012329,2]
[406282875,1771687840740,-283.88,0.00012329,2]
[406282877,1771687840749,-236.57,0.00012329,2]
[406282879,1771687840759,-197.14,0.00012329,2]
[406282881,1771687840767,-164.28,0.00012329,2]
[406282882,1771687840776,-821.43,0.00012329,2]
[406282884,1771687840786,-500.0,0.00012329,2]
[406282885,1771687840794,-500.0,0.00012384,2]
[406282886,1771687840803,-500.51352324,0.00012439,2]
[406282887,1771687840812,-2598.78716543,0.000129,2]
[406282888,1771687840821,-231.0,0.00013101,2]
[406282889,1771687840831,-2258.0,0.00013108,2]
[406282890,1771687840840,-502.11188835,0.00013273,2]
[406282891,1771687840849,-500.0,0.00013273,2]
[406282892,1771687840858,-500.0,0.00013273,2]
[406282893,1771687840867,-500.0,0.00013273,2]
[406282894,1771687840875,-500.0,0.00013273,2]
[406282895,1771687840884,-172.50082896,0.00013273,2]
[406282896,1771687840893,-500.0,0.00013273,2]
[406282897,1771687840902,-500.0,0.00013273,2]
[406282898,1771687840911,-500.0,0.00013273,2]
[406282899,1771687840920,-500.0,0.00013273,2]
[406282900,1771687840929,-500.0,0.00013273,2]
[406282901,1771687840938,-500.0,0.00013273,2]
[406282902,1771687840947,-500.0,0.00013273,2]
[406282903,1771687840956,-500.0,0.00013273,2]
[406282904,1771687840965,-500.0,0.00013273,2]
[406282905,1771687840974,-500.0,0.00013273,2]
[406282906,1771687840983,-500.0,0.00013273,2]
[406282907,1771687840991,-500.0,0.00013273,2]
[406282909,1771687841000,-500.0,0.00013273,2]
[406282910,1771687841008,-500.0,0.00013273,2]
[406282912,1771687841018,-500.0,0.00013273,2]
[406282914,1771687841027,-271.75510593,0.00013273,2]
[406282917,1771687841036,-500.0,0.00013273,2]
[406282918,1771687841045,-500.0,0.00013273,2]
[406282921,1771687841054,-204.54505528,0.00013673,2]
[406282922,1771687841063,-500.0,0.00013698,2]
[406282924,1771687841072,-500.0,0.00013698,2]
[406282927,1771687841081,-500.0,0.00013698,2]
[406282928,1771687841091,-500.0,0.00013698,2]
[406282930,1771687841100,-500.0,0.00013698,2]
[406282932,1771687841108,-500.0,0.00013698,2]
[406282934,1771687841117,-500.0,0.00013698,2]
[406282936,1771687841126,-426.19312835,0.00013698,2]
[406282938,1771687841135,-500.0,0.00013698,2]
[406282940,1771687841144,-500.0,0.00013698,2]
[406282942,1771687841153,-561.53813772,0.00013698,2]
[406282945,1771687841163,-500.0,0.00013698,2]
[406282946,1771687841172,-500.0,0.00013698,2]
[406282949,1771687841181,-500.0,0.00013698,2]
[406282950,1771687841192,-500.0,0.00013698,2]
[406282952,1771687841201,-500.0,0.00013698,2]
[406282954,1771687841211,-500.0,0.00013698,2]
[406282956,1771687841220,-500.0,0.00013698,2]
[406282958,1771687841230,-500.0,0.00013698,2]
[406282961,1771687841241,-887.591238,0.00013699,2]
[406282963,1771687841250,-500.0,0.00013699,2]
[406282964,1771687841259,-205.32873319,0.00013699,2]
[406282966,1771687841270,-456.35050886,0.00013699,2]
[406282969,1771687841281,-500.0,0.00013699,2]
[406282971,1771687841290,-500.0,0.00013699,2]
[406282972,1771687841300,-500.0,0.00013699,2]
[406282974,1771687841311,-500.0,0.00013699,2]
[406282976,1771687841320,-500.0,0.00013699,2]
[406282978,1771687841329,-500.0,0.00013699,2]
[406282980,1771687841338,-555.8884954,0.00013699,2]
[406282982,1771687841346,-500.0,0.00013699,2]
[406282984,1771687841355,-242.21681436,0.00013699,2]
[406282986,1771687841364,-500.0,0.00013699,2]
[406282987,1771687841373,-150.0,0.00013699,2]
[406282988,1771687841382,-500.0,0.00013699,2]
[406282989,1771687841391,-500.0,0.00013699,2]
[406282991,1771687841400,-500.0,0.00013699,2]
[406282993,1771687841408,-500.0,0.00013699,2]
[406282995,1771687841417,-500.0,0.00013699,2]
[406282996,1771687841426,-500.0,0.00013699,2]
[406282997,1771687841435,-500.0,0.00013699,2]
[406282998,1771687841444,-500.0,0.00013699,2]
[406282999,1771687841454,-447.45894213,0.00013699,2]
[406283000,1771687841463,-500.0,0.00013699,2]
[406283001,1771687841472,-500.0,0.00013699,2]
[406283002,1771687841481,-500.0,0.00013699,2]
[406283003,1771687841490,-528.26744188,0.00013699,2]
[406283004,1771687841499,-620.71408323,0.00013699,2]
[406283005,1771687841508,-500.0,0.00013699,2]
[406283006,1771687841518,-500.0,0.00013699,2]
[406283007,1771687841527,-500.0,0.00013699,2]
[406283008,1771687841536,-500.0,0.00013699,2]
[406283009,1771687841545,-500.0,0.00013699,2]
[406283010,1771687841554,-500.0,0.00013699,2]
[406283011,1771687841692,-500.0,0.00013699,2]
[406283012,1771687841704,-500.0,0.00013699,2]
[406283013,1771687841714,-500.0,0.00013699,2]
[406283014,1771687841723,-500.0,0.00013699,2]
[406283015,1771687841732,-1000.0,0.00013821,2]
[406283016,1771687841741,-1000.0,0.00013821,2]
[406283017,1771687841750,-1000.0,0.00013821,2]
[406283018,1771687841759,-1000.0,0.00013821,2]
[406283019,1771687841768,-1000.0,0.00013821,2]
[406283020,1771687841778,-1137.64182665,0.00013821,2]
[406283021,1771687841787,-1000.0,0.00013821,2]
[406283022,1771687841796,-1000.0,0.00013821,2]
[406283023,1771687841804,-1000.0,0.00013821,2]
[406283024,1771687841813,-1000.0,0.00013821,2]
[406283025,1771687841822,-1000.0,0.00013821,2]
[406283026,1771687841831,-1000.0,0.00013821,2]
[406283027,1771687841840,-1000.0,0.00013821,2]
[406283028,1771687841849,-1000.0,0.00013821,2]
[406283029,1771687841858,-1000.0,0.00013821,2]
[406283030,1771687841867,-1000.0,0.00013821,2]
[406283031,1771687841877,-1000.0,0.00013821,2]
[406283032,1771687841886,-1000.0,0.00013821,2]
[406283033,1771687841895,-1000.0,0.00013821,2]
[406283034,1771687841904,-1000.0,0.00013821,2]
[406283035,1771687841913,-1000.0,0.00013821,2]
[406283036,1771687841922,-161.04,0.0001397,2]
[406283037,1771687841931,-500.0,0.00014246,2]
[406283038,1771687841940,-1000.0,0.00014247,2]
[406283039,1771687841949,-1000.0,0.00014247,2]
[406283040,1771687841958,-1000.0,0.00014247,2]
[406283041,1771687841967,-1000.0,0.00014247,2]
[406283042,1771687841976,-1000.0,0.00014247,2]
[406283043,1771687841986,-1000.0,0.00014247,2]
[406283044,1771687841995,-1000.0,0.00014247,2]
[406283045,1771687842004,-1000.0,0.00014247,2]
[406283046,1771687842013,-248.31005767,0.00014247,2]
[406283047,1771687842022,-250.0,0.00014247,2]
[406283048,1771687842032,-1000.0,0.00014247,2]
[406283049,1771687842041,-1000.0,0.00014247,2]
[406283050,1771687842051,-1000.0,0.00014247,2]
[406283051,1771687842060,-1000.0,0.00014247,2]
[406283052,1771687842069,-1000.0,0.00014247,2]
[406283053,1771687842079,-452.64702064,0.00014247,2]
[406283054,1771687842087,-1000.0,0.00014247,2]
[406283055,1771687842096,-335.11116626,0.00014247,2]
[406283056,1771687842105,-1000.0,0.00014247,2]
[406283057,1771687842114,-191.96625691,0.00014247,2]
[406283058,1771687842124,-855.2573341,0.00014247,2]
[406283059,1771687842132,-1000.0,0.00014247,2]
[406283060,1771687842142,-1000.0,0.00014247,2]
[406283061,1771687842151,-719.95474672,0.00014247,2]
[406283062,1771687842160,-1000.0,0.00014247,2]
[406283063,1771687842169,-1000.0,0.00014247,2]
[406283064,1771687842178,-1000.0,0.00014247,2]
[406283065,1771687842187,-732.08085256,0.00014247,2]
[406283066,1771687842197,-1000.0,0.00014247,2]
[406283067,1771687842206,-683.99116122,0.00014247,2]
[406283068,1771687842215,-1000.0,0.00014247,2]
[406283069,1771687842224,-500.0,0.00014368,2]
[406283070,1771687842234,-1500.0,0.00014368,2]
[406283071,1771687842243,-709.0392679,0.00014368,2]
[406283072,1771687842253,-1500.0,0.00014368,2]
[406283073,1771687842262,-1500.0,0.00014368,2]
[406283074,1771687842272,-151.04909661,0.00014368,2]
[406283075,1771687842281,-573.12363383,0.00014368,2]
[406283076,1771687842291,-1500.0,0.00014368,2]
[406283077,1771687842301,-1023.39813534,0.00014368,2]
[406283078,1771687842309,-1500.0,0.00014368,2]
[406283079,1771687842318,-1500.0,0.00014368,2]
[406283080,1771687842327,-540.29263282,0.00014368,2]
[406283081,1771687842336,-1500.0,0.00014368,2]
[406283082,1771687842345,-718.2106455,0.00014368,2]
[406283083,1771687842354,-1500.0,0.00014368,2]
[406283084,1771687842363,-1500.0,0.00014368,2]
[406283085,1771687842372,-1500.0,0.00014368,2]
[406283086,1771687842381,-1500.0,0.00014368,2]
[406283087,1771687842391,-1500.0,0.00014368,2]
[406283088,1771687842401,-1500.0,0.00014368,2]
[406283089,1771687842410,-1500.0,0.00014368,2]
[406283090,1771687842419,-1940.0,0.00014419,2]
[406283091,1771687842428,-2598.78716542,0.00014469,2]
[406283092,1771687842437,-648.38,0.00014794,2]
[406283093,1771687842446,-1543.75593635,0.00014795,2]
[406283094,1771687842455,-648.17742013,0.00014795,2]
[406283095,1771687842465,-1500.0,0.00014795,2]
[406283096,1771687842474,-1500.0,0.00014795,2]
[406283097,1771687842483,-1500.0,0.00014795,2]
[406283098,1771687842492,-1500.0,0.00014795,2]
[406283099,1771687842502,-1500.0,0.00014795,2]
[406283100,1771687842512,-1500.0,0.00014795,2]
[406283101,1771687842527,-402.7373299,0.00014795,2]
[406283102,1771687842546,-1500.0,0.00014795,2]
[406283103,1771687842555,-1337.72341587,0.00014795,2]
[406283104,1771687842564,-1500.0,0.00014795,2]
[406283105,1771687842573,-1500.0,0.00014795,2]
[406283106,1771687842583,-1500.0,0.00014795,2]
[406283107,1771687842592,-1500.0,0.00014795,2]
[406283108,1771687842606,-1500.0,0.00014795,2]
[406283109,1771687842615,-728.04913143,0.00014795,2]
[406283110,1771687842625,-1500.0,0.00014795,2]
[406283111,1771687842634,-1500.0,0.00014795,2]
[406283112,1771687842645,-1500.0,0.00014795,2]
[406283113,1771687842656,-1500.0,0.00014795,2]
[406283114,1771687842665,-278.68739016,0.00014795,2]
[406283115,1771687842674,-1500.0,0.00014795,2]
[406283116,1771687842685,-2000.0,0.00014916,2]
[406283117,1771687842694,-2000.0,0.00014916,2]
[406283118,1771687842703,-2000.0,0.00014916,2]
[406283119,1771687842713,-2000.0,0.00014916,2]
[406283120,1771687842722,-1229.43414158,0.00014916,2]
[406283121,1771687842731,-2000.0,0.00014916,2]
[406283123,1771687842740,-2000.0,0.00014916,2]
[406283125,1771687842750,-2000.0,0.00014916,2]
[406283126,1771687842759,-2000.0,0.00014916,2]
[406283128,1771687842768,-1320.82047287,0.00014916,2]
[406283129,1771687842777,-2000.0,0.00014916,2]
[406283130,1771687842787,-2000.0,0.00014916,2]
[406283131,1771687842796,-2000.0,0.00014916,2]
[406283132,1771687842805,-1600.35175732,0.00014916,2]
[406283133,1771687842814,-3073.88477384,0.00015,7]
[406283134,1771687842824,-202.32808579,0.00015068,2]
[406283135,1771687842833,-258.0,0.00015101,2]
[406283136,1771687842844,-151.0,0.000153,2]
[406283137,1771687842863,-2000.0,0.00015342,2]
[406283138,1771687842884,-2000.0,0.00015342,2]
[406283139,1771687842896,-1654.98676419,0.00015342,2]
[406283140,1771687842907,-2000.0,0.00015342,2]
[406283141,1771687842917,-167.83448791,0.00015342,2]
[406283142,1771687842928,-867.13548063,0.00015342,2]
[406283144,1771687842939,-2000.0,0.00015342,2]
[406283147,1771687842950,-2000.0,0.00015342,2]
[406283150,1771687842962,-511.40319057,0.00015342,2]
[406283153,1771687842973,-694.16502726,0.00015342,2]
[406283155,1771687842983,-1446.24644431,0.00015342,2]
[406283158,1771687842994,-2097.98038219,0.00015342,2]
[406283161,1771687843005,-1756.7839229,0.00015342,2]
[406283164,1771687843015,-2000.0,0.00015342,2]
[406283166,1771687843024,-2000.0,0.00015342,2]
[406283169,1771687843033,-2000.0,0.00015342,2]
[406283172,1771687843042,-776.3852392,0.00015342,2]
[406283173,1771687843051,-680.84346748,0.00015464,2]
[406283175,1771687843061,-2500.0,0.00015464,2]
[406283176,1771687843076,-2500.0,0.00015464,2]
[406283177,1771687843096,-2500.0,0.00015464,2]
[406283178,1771687843113,-2500.0,0.00015464,2]
[406283179,1771687843122,-2500.0,0.00015464,2]
[406283180,1771687843132,-1885.16253215,0.00015464,2]
[406283181,1771687843144,-2500.0,0.00015464,2]
[406283182,1771687843153,-329.84993741,0.00015464,2]
[406283183,1771687843162,-2500.0,0.00015464,2]
[406283184,1771687843175,-2500.0,0.00015464,2]
[406283185,1771687843184,-500.0,0.000156,2]
[406283186,1771687843193,-686.059485,0.000156,2]
[406283187,1771687843204,-16595.16,0.000156,2]
[406283188,1771687843215,-1628.44929298,0.000156,2]
[406283189,1771687843226,-2500.0,0.0001589,2]
[406283190,1771687843239,-2500.0,0.0001589,2]
[406283191,1771687843248,-2500.0,0.0001589,2]
[406283192,1771687843258,-2500.0,0.0001589,2]
[406283193,1771687843267,-2500.0,0.0001589,2]
[406283194,1771687843279,-778.0940984,0.0001589,2]
[406283195,1771687843290,-2500.0,0.0001589,2]
[406283196,1771687843301,-2500.0,0.0001589,2]
[406283197,1771687843316,-3000.0,0.00016012,2]
[406283198,1771687843326,-3000.0,0.00016012,2]
[406283199,1771687843335,-1006.38670905,0.00016012,2]
[406283200,1771687843345,-3000.0,0.00016012,2]
[406283201,1771687843357,-401.20110752,0.00016012,2]
[406283202,1771687843368,-3000.0,0.00016012,2]
[406283203,1771687843378,-3000.0,0.00016012,2]
[406283204,1771687843389,-612.12899041,0.00016012,2]
[406283205,1771687843398,-151.0,0.000163,2]
[406283206,1771687843408,-150.0,0.00016438,2]
[406283207,1771687843418,-1068.70941397,0.00016438,2]
[406283208,1771687843428,-3000.0,0.00016438,2]
[406283209,1771687843438,-3000.0,0.00016438,2]
[406283210,1771687843447,-354.33241908,0.00016438,2]
[406283211,1771687843457,-3000.0,0.00016438,2]
[406283212,1771687843469,-3000.0,0.00016438,2]
[406283213,1771687843480,-3000.0,0.00016438,2]
[406283214,1771687843490,-3500.0,0.0001656,2]
[406283215,1771687843499,-3500.0,0.0001656,2]
[406283216,1771687843509,-3500.0,0.0001656,2]
[406283217,1771687843520,-3500.0,0.0001656,2]
[406283218,1771687843531,-3500.0,0.0001656,2]
[406283219,1771687843540,-18104.41292498,0.00016634,2]
[406283220,1771687843555,-81895.58707502,0.00016634,2]
[406283221,1771687843565,-487.0,0.00016634,2]
[406283222,1771687843574,-487.0,0.00016634,2]
[406283223,1771687843583,-487.0,0.00016634,2]
[406283225,1771687843592,-487.0,0.00016634,2]
[406283227,1771687843603,-487.0,0.00016634,2]
[406283228,1771687843615,-487.0,0.00016634,2]
[406283229,1771687843625,-487.0,0.00016634,2]
[406283230,1771687843634,-487.0,0.00016634,2]
[406283231,1771687843644,-487.0,0.00016634,2]
[406283232,1771687843653,-487.0,0.00016634,2]
[406283233,1771687843662,-487.0,0.00016634,2]
[406283234,1771687843671,-487.0,0.00016634,2]
[406283235,1771687843680,-487.0,0.00016634,2]
[406283236,1771687843690,-487.0,0.00016634,2]
[406283237,1771687843700,-487.0,0.00016634,2]
[406283238,1771687843709,-560.46,0.00016634,2]
[406283239,1771687843718,-1303.38474924,0.00016986,2]
[406283240,1771687843797,-150.79126087,0.00016986,2]
[406283241,1771687843813,-3500.0,0.00016986,2]
[406283242,1771687843823,-3503.30482113,0.00016986,2]
[406283243,1771687843832,-3500.0,0.00016986,2]
[406283244,1771687843842,-3500.0,0.00016986,2]
[406283245,1771687843851,-1012.64499065,0.00017,2]
[406283246,1771687843860,-285.0,0.00017101,2]
[406283247,1771687843869,-354.55318925,0.00017108,2]
[406283248,1771687843879,-4000.0,0.00017108,2]
[406283249,1771687843888,-2830.87357983,0.00017108,2]
[406283250,1771687843897,-2115.79185446,0.00017108,2]
[406283251,1771687843906,-4000.0,0.00017108,2]
[406283252,1771687843915,-151.0,0.000174,2]
[406283253,1771687843924,-3683.26067836,0.00017534,2]
[406283254,1771687843934,-525.19331595,0.00017534,2]
[406283255,1771687843943,-4000.0,0.00017534,2]
[406283256,1771687843952,-1957.856,0.00017598,2]
[406283257,1771687843962,-250.0,0.00017598,2]
[406283258,1771687843971,-209.40437684,0.00017598,2]
[406283259,1771687843980,-250.0,0.00017598,2]
[406283260,1771687843989,-250.0,0.00017598,2]
[406283261,1771687843999,-217.15233878,0.00017598,2]
[406283262,1771687844007,-250.0,0.00017598,2]
[406283263,1771687844017,-250.0,0.00017598,2]
[406283264,1771687844026,-151.0,0.00017598,2]
[406283265,1771687844035,-250.0,0.00017598,2]
[406283266,1771687844044,-225.18697532,0.00017598,2]
[406283267,1771687844053,-250.0,0.00017598,2]
[406283268,1771687844062,-151.0,0.00017598,2]
[406283269,1771687844071,-250.0,0.00017598,2]
[406283270,1771687844080,-250.0,0.00017598,2]
[406283271,1771687844089,-233.51889341,0.00017598,2]
[406283272,1771687844098,-250.0,0.00017598,2]
[406283273,1771687844108,-250.0,0.00017598,2]
[406283274,1771687844118,-151.0,0.00017598,2]
[406283275,1771687844127,-250.0,0.00017598,2]
[406283276,1771687844137,-242.15909246,0.00017598,2]
[406283277,1771687844146,-250.0,0.00017598,2]
[406283278,1771687844156,-250.0,0.00017598,2]
[406283279,1771687844165,-250.0,0.00017598,2]
[406283280,1771687844174,-251.11897888,0.00017598,2]
[406283281,1771687844183,-500.0,0.00017598,2]
[406283282,1771687844191,-250.0,0.00017598,2]
[406283283,1771687844200,-250.0,0.00017598,2]
[406283284,1771687844210,-260.4103811,0.00017598,2]
[406283285,1771687844219,-250.0,0.00017598,2]
[406283286,1771687844228,-500.0,0.00017598,2]
[406283287,1771687844237,-250.0,0.00017598,2]
[406283288,1771687844247,-270.0455652,0.00017598,2]
[406283289,1771687844256,-500.0,0.00017598,2]
[406283290,1771687844265,-250.0,0.00017598,2]
[406283291,1771687844274,-500.0,0.00017598,2]
[406283292,1771687844284,-250.0,0.00017598,2]
[406283293,1771687844293,-500.0,0.00017598,2]
[406283294,1771687844303,-250.0,0.00017598,2]
[406283295,1771687844314,-500.0,0.00017598,2]
[406283296,1771687844323,-500.0,0.00017598,2]
[406283297,1771687844332,-250.0,0.00017598,2]
[406283298,1771687844341,-500.0,0.00017598,2]
[406283299,1771687844351,-500.0,0.00017598,2]
[406283300,1771687844359,-280.03725112,0.00017598,2]
[406283301,1771687844368,-290.39862941,0.00017598,2]
[406283302,1771687844378,-500.0,0.00017598,2]
[406283303,1771687844387,-301.1433787,0.00017598,2]
[406283304,1771687844397,-500.0,0.00017598,2]
[406283305,1771687844406,-2030.296672,0.00017653,2]
[406283306,1771687844416,-4500.0,0.00017656,2]
[406283307,1771687844428,-4158.53056558,0.00017656,2]
[406283308,1771687844437,-2105.41764886,0.00017708,2]
[406283309,1771687844447,-2183.31810187,0.00017763,2]
[406283310,1771687844456,-150.0,0.00017808,2]
[406283311,1771687844466,-2264.10087164,0.00017818,2]
[406283312,1771687844475,-2347.87260389,0.00017873,2]
[406283313,1771687844485,-179.77,0.0001791,2]
[406283314,1771687844494,-2268.24004175,0.00017928,2]
[406283315,1771687844504,-1463.1577658,0.0001795,2]
[406283316,1771687844513,-27030.8824286,0.0001795,2]
[406283317,1771687844523,-500.0,0.00017998,2]
[406283318,1771687844532,-6661.78173137,0.00017998,2]
[406283319,1771687844540,-414.25898074,0.00017999,2]
[406283320,1771687844550,-745.66616532,0.00017999,2]
[406283321,1771687844560,-1325.62873835,0.00017999,2]
[406283322,1771687844568,-2071.29490368,0.00017999,2]
[406283323,1771687844577,-2982.6646613,0.00017999,2]
[406283324,1771687844586,-4059.73801121,0.00017999,2]
[406283325,1771687844595,-5302.51495341,0.00017999,2]
[406283326,1771687844611,-6710.99548792,0.00017999,2]
[406283327,1771687844620,-8285.17961471,0.00017999,2]
[406283328,1771687844629,-10025.0673338,0.00017999,2]
[406283329,1771687844639,-500.0,0.00017999,2]
[406283330,1771687844650,-500.0,0.00017999,2]
[406283331,1771687844659,-500.0,0.00017999,2]
[406283332,1771687844668,-500.0,0.00017999,2]
[406283333,1771687844680,-500.0,0.00017999,2]
[406283334,1771687844690,-187.31278854,0.00017999,2]
[406283335,1771687844699,-179.97055379,0.00017999,2]
[406283336,1771687844708,-719.88221517,0.00017999,2]
[406283337,1771687844717,-1619.73498412,0.00017999,2]
[406283338,1771687844727,-2879.52886066,0.00017999,2]
[406283339,1771687844736,-4499.26384479,0.00017999,2]
[406283340,1771687844745,-290.49025941,0.00017999,2]
[406283341,1771687844754,-522.88246694,0.00017999,2]
[406283342,1771687844763,-929.56883011,0.00017999,2]
[406283343,1771687844773,-283.18448439,0.00017999,2]
[406283344,1771687844783,-509.7320719,0.00017999,2]
[406283345,1771687844792,-906.19035004,0.00017999,2]
[406283346,1771687844802,-197023.89119723,0.00018,2]
[406283347,1771687844811,-69694.61298169,0.00018,2]
[406283348,1771687844823,-18889.15672385,0.00018,2]
[406283349,1771687844833,-31233.78362423,0.00018,2]
[406283350,1771687844843,-4500.0,0.00018082,2]
[406283351,1771687844852,-4277.58201077,0.00018204,2]
[406283352,1771687844861,-250.0,0.00018356,2]
[406283353,1771687844871,-151.0,0.000184,2]
[406283354,1771687844880,-2000.0,0.00018418,7]
[406283355,1771687844890,-5000.0,0.0001863,2]
[406283356,1771687844900,-350.0,0.00018904,2]
[406283357,1771687844909,-24424.27866492,0.00019,2]
[406283358,1771687844919,-2272.8165936,0.00019,2]
[406283359,1771687844928,-500.0,0.00019,2]
[406283360,1771687844937,-312.0,0.00019101,2]
[406283361,1771687844947,-852.011,0.00019178,2]
[406283362,1771687844956,-711.21,0.00019178,2]
[406283363,1771687844965,-310.02,0.00019178,2]
[406283364,1771687844975,-5500.0,0.00019178,2]
[406283365,1771687844985,-316.55,0.000192,2]
[406283366,1771687844995,-3799.99,0.000192,2]
[406283367,1771687845004,-166.43,0.000192,2]
[406283368,1771687845014,-169.09,0.000192,2]
[406283369,1771687845024,-151.0,0.000194,2]
[406283370,1771687845033,-450.0,0.00019452,2]
[406283371,1771687845043,-197.37,0.00019489,3]
[406283372,1771687845052,-681.609,0.00019589,3]
[406283373,1771687845062,-6000.0,0.00019726,2]
[406283374,1771687845073,-27030.8824286,0.00019784,2]
[406283375,1771687845084,-14774.77148843,0.0002,2]
[406283376,1771687845093,-409.11245023,0.0002,2]
[406283377,1771687845103,-5111.71642123,0.0002,2]
[406283378,1771687845112,-151.75701313,0.0002,2]
[406283379,1771687845121,-1463.1577658,0.00020062,2]
[406283380,1771687845131,-1810.68231677,0.00020274,2]
[406283381,1771687845140,-151.0,0.000205,4]
[406283382,1771687845149,-887.591238,0.00020548,2]
[406283383,1771687845158,-1396.38893434,0.0002061,2]
[406283384,1771687845168,-151.0,0.000208,4]
[406283385,1771687845179,-257.79723458,0.000209,2]
[406283386,1771687845190,-278.84398089,0.00021,2]
[406283387,1771687845199,-50000.0,0.00021,2]
[406283388,1771687845210,-680.28274673,0.00021,2]
[406283389,1771687845219,-4984.18917231,0.00021,5]
[406283390,1771687845228,-339.0,0.00021101,2]